bitfinex/quotes_ETHUSD_20240819
["timestamp","ask_amount","ask_price","bid_price","bid_amount"]
[1724037064831,0.11644632,2644.4,2644.1,2.64733]
[1724037065036,2.64689,2644.7,2644.1,2.64733]
[1724037065245,12.23883,2644.8,2644.1,2.64733]
[1724037065246,0.11645018,2644.3,2644.1,2.64733]
[1724037065475,2.64706,2644.5,2643.9,2.3193]
[1724037065654,0.1162994,2644.2,2643.9,2.3193]
[1724037065985,2.64706,2644.5,2643.9,2.3193]
[1724037066156,0.11622994,2644.1,2643.9,2.3193]
[1724037066358,2.64706,2644.5,2643.9,2.3193]
[1724037066558,3.3253133,2644.5,2643.9,2.3193]
[1724037066773,0.11643831,2644.4,2643.9,2.3193]
[1724037066994,0.11643831,2644.4,2644.0,2.64742]
[1724037067564,4.135473,2644.6,2644.0,2.64742]
[1724037067779,0.11637143,2644.3,2644.0,2.64742]
[1724037068089,0.11630198,2644.2,2644.0,2.64742]
[1724037068255,0.4135473,2644.5,2644.0,2.64742]
[1724037068455,0.11623252,2644.1,2643.9,2.3193]
[1724037068681,3.0605473,2644.5,2643.9,4.96689]
[1724037069109,0.11644088,2644.4,2643.9,4.96689]
[1724037070694,0.847688,2644.4,2643.9,4.96689]
[1724037071200,0.847688,2644.4,2644.0,2.64749]
[1724037071354,0.11644088,2644.4,2644.0,2.64749]
[1724037071694,12.23883,2644.8,2644.1,2.64731]
[1724037071998,12.58351,2644.8,2644.3,2.4474]
[1724037072153,2.64682,2644.7,2644.3,2.4474]
[1724037072358,2.76347743,2644.7,2644.3,2.4474]
[1724037074718,2.76347743,2644.7,2644.1,5.14315]
[1724037074880,4.11155238,2644.7,2644.1,5.14315]
[1724037075817,0.11665743,2644.7,2644.4,2.64702]
[1724037076028,19.71,2645.1,2644.6,2.6469]
[1724037076315,0.11329424,2645.0,2644.7,2.64674]
[1724037076701,7.29,2645.2,2644.7,2.64674]
[1724037076911,0.11267804,2644.9,2644.5,7.70649]
[1724037077073,13.130237,2645.2,2644.5,5.05953]
[1724037077277,0.11268403,2644.8,2644.5,5.05953]
[1724037077492,13.130237,2645.2,2644.5,5.565483]
[1724037077711,0.1126146,2644.7,2644.5,5.05953]
[1724037077918,13.130237,2645.2,2644.6,2.64687]
[1724037079416,13.130237,2645.2,2644.7,2.64678]
[1724037079619,0.11289229,2645.1,2644.7,2.64678]
[1724037079789,0.11289229,2645.1,2644.6,2.2818]
[1724037079995,0.11289229,2645.1,2644.5,0.505953]
[1724037079996,7.29,2645.5,2645.1,2.64637]
[1724037080231,0.1130637,2645.4,2645.1,2.64637]
[1724037080475,2.3560637,2645.4,2645.1,2.64637]
[1724037082039,2.3560637,2645.4,2645.0,2.4478]
[1724037082240,2.4076,2645.3,2644.7,2.64673]
[1724037082414,0.47636637,2645.2,2644.7,2.64673]
[1724037082615,0.11288675,2645.1,2644.7,2.64673]
[1724037089626,2.75929675,2645.1,2644.5,2.64694]
[1724037090167,0.11288675,2645.1,2644.3,2.4923]
[1724037090471,0.11288675,2645.1,2644.6,2.64683]
[1724037090768,0.11288675,2645.1,2644.4,2.64704]
[1724037090769,2.2725,2644.9,2644.4,2.64704]
[1724037091263,2.2725,2644.9,2644.3,5.13943]
[1724037091264,0.11321785,2644.8,2644.5,2.647]
[1724037092623,0.11321785,2644.8,2644.0,2.4833]
[1724037092829,2.3661,2644.6,2644.0,2.4833]
[1724037093028,4.96757799,2644.5,2644.0,2.4833]
[1724037093856,2.64722,2644.3,2643.8,2.3612]
[1724037094034,0.11273372,2644.2,2643.8,2.3612]
[1724037094269,2.64722,2644.3,2643.8,2.3612]
[1724037094453,0.11266427,2644.1,2643.8,2.3612]
[1724037094658,0.11237384,2644.2,2643.8,2.3612]
[1724037094957,0.11223491,2644.0,2643.8,2.3612]
[1724037095266,0.11216544,2643.9,2643.8,2.3612]
[1724037095622,0.264722,2644.2,2643.8,2.3612]
[1724037095873,0.264722,2644.2,2643.7,2.64773]
[1724037095874,2.52180438,2644.1,2643.5,5.01342]
[1724037096173,0.27865264,2644.0,2643.5,2.64792]
[1724037096529,0.11148143,2643.9,2643.5,2.64792]
[1724037097527,0.11148143,2643.9,2643.3,5.01364]
[1724037097728,0.65618684,2643.9,2643.4,2.64803]
[1724037099482,2.4394,2643.8,2643.3,2.64814]
[1724037099627,0.57431968,2643.7,2643.3,2.64814]
[1724037099972,0.11125781,2643.6,2643.3,2.64814]
[1724037100767,0.11125781,2643.6,2643.1,2.64837]
[1724037101729,2.75916781,2643.6,2642.9,2.64854]
[1724037101948,3.60123756,2643.6,2642.9,2.64854]
[1724037102185,3.60123756,2643.6,2642.9,5.29707]
[1724037102366,3.60123756,2643.6,2642.9,2.64853]
[1724037102682,0.95332756,2643.6,2643.0,2.3024]
[1724037102848,0.11125781,2643.6,2643.0,2.3024]
[1724037103073,0.11125781,2643.6,2643.1,2.6484]
[1724037103278,2.75916781,2643.6,2643.0,2.3024]
[1724037103803,5.04788,2643.5,2642.8,5.0241]
[1724037104004,5.58858078,2643.5,2642.8,5.0241]
[1724037104205,0.11090349,2643.4,2642.8,5.0241]
[1724037104365,0.11090349,2643.4,2642.9,2.64859]
[1724037104705,0.53405684,2643.4,2642.9,2.64859]
[1724037106007,0.53405684,2643.4,2642.7,2.64877]
[1724037106164,3.18222684,2643.4,2642.7,2.64877]
[1724037106704,0.53405684,2643.4,2642.9,2.64858]
[1724037106916,0.53405684,2643.4,2642.9,5.02398]
[1724037107406,0.11090349,2643.4,2642.9,7.67251]
[1724037107576,0.11090349,2643.4,2642.9,5.02393]
[1724037107781,0.11090349,2643.4,2643.1,2.64838]
[1724037107990,7.29,2643.6,2643.1,2.64838]
[1724037108309,3.204764,2643.5,2643.1,2.64838]
[1724037108491,3.31580783,2643.5,2643.1,2.64838]
[1724037110271,0.11104383,2643.5,2643.2,2.64828]
[1724037110768,0.11104383,2643.5,2643.3,2.64819]
[1724037111108,0.11104383,2643.5,2643.3,4.95569]
[1724037111312,19.71,2643.7,2643.3,4.95569]
[1724037111609,0.11085462,2643.4,2643.3,4.95569]
[1724037111924,0.11079349,2643.4,2643.3,4.95569]
[1724037112073,19.71,2643.7,2643.4,2.64805]
[1724037112270,19.71,2643.7,2643.3,4.95562]
[1724037112579,1.971,2643.6,2643.3,2.64812]
[1724037113267,19.71,2643.7,2643.3,2.64812]
[1724037115170,0.11091976,2643.6,2643.3,2.64812]
[1724037115576,0.11091976,2643.6,2643.3,5.29626]
[1724037115779,9.9376,2643.9,2643.3,2.64812]
[1724037115975,0.11085024,2643.5,2643.3,2.64812]
[1724037116181,9.9376,2643.9,2643.3,2.64812]
[1724037116375,0.11081204,2643.4,2643.1,4.95588]
[1724037116575,2.6478,2643.7,2643.1,4.95588]
[1724037116875,2.6478,2643.7,2643.2,2.64829]
[1724037117108,0.1109511,2643.6,2643.2,2.64829]
[1724037117427,0.1109511,2643.6,2643.3,2.6482]
[1724037117589,13.74705125,2643.9,2643.3,2.6482]
[1724037117776,0.1108189,2643.5,2643.3,2.6482]
[1724037117979,16.39473125,2643.9,2643.3,2.6482]
[1724037118213,0.1107807,2643.4,2643.3,2.6482]
[1724037118418,2.6477,2643.8,2643.3,2.6482]
[1724037118720,1.63947513,2643.7,2643.3,2.6482]
[1724037118918,1.75046441,2643.7,2643.3,2.6482]
[1724037119079,1.75046441,2643.7,2643.1,4.95582]
[1724037119388,1.75046441,2643.7,2643.1,7.60416]
[1724037119578,1.75046441,2643.7,2643.1,4.95582]
[1724037119779,2.3302,2643.6,2643.1,4.95582]
[1724037120079,0.11088157,2643.5,2643.1,4.95582]
[1724037120609,0.11088157,2643.5,2643.2,2.64823]
[1724037120803,0.11088157,2643.5,2643.4,2.6481]
[1724037121027,4.94532,2644.0,2643.4,2.6481]
[1724037121194,4.94532,2644.0,2643.3,2.64819]
[1724037121195,0.1115494,2643.5,2643.3,2.64819]
[1724037121392,5.377886,2643.9,2643.3,2.64813]
[1724037121723,2.2978,2643.8,2643.3,2.64813]
[1724037121926,0.11083946,2643.8,2643.3,5.03663]
[1724037122128,0.11083946,2643.8,2643.3,5.03661]
[1724037122313,0.11083946,2643.8,2643.4,2.64809]
[1724037122514,0.11083946,2643.8,2643.5,2.64799]
[1724037122826,25.00489,2644.1,2643.5,2.64799]
[1724037122991,0.11081467,2643.7,2643.5,2.64799]
[1724037123189,19.71,2644.0,2643.5,2.64799]
[1724037123394,0.11080782,2643.6,2643.5,2.64799]
[1724037123700,0.11083915,2643.6,2643.5,2.64799]
[1724037123903,22.3575,2644.0,2643.5,2.64799]
[1724037124102,0.11083915,2643.6,2643.5,2.64799]
[1724037124301,22.3575,2644.0,2643.5,2.64799]
[1724037124512,0.11083915,2643.6,2643.5,2.64799]
[1724037124716,1.61,2643.9,2643.5,2.64799]
[1724037124927,0.11084482,2643.6,2643.5,2.64799]
[1724037125145,1.61,2643.9,2643.5,2.64799]
[1724037125429,0.11084637,2643.6,2643.5,2.64799]
[1724037125726,0.11081503,2643.6,2643.5,2.64799]
[1724037125930,1.61,2643.9,2643.5,2.64799]
[1724037126105,1.61,2643.9,2643.3,5.03661]
[1724037126106,0.11084637,2643.6,2643.3,5.03661]
[1724037126302,1.61,2643.7,2643.3,5.03661]
[1724037126511,0.11080869,2643.5,2643.3,5.03661]
[1724037126713,2.3936,2643.8,2643.3,5.03661]
[1724037127003,2.3936,2643.8,2643.1,2.64838]
[1724037127004,0.11073916,2643.4,2643.2,2.6483]
[1724037127203,7.7825691,2643.8,2643.2,2.6483]
[1724037127404,0.11066962,2643.3,2643.2,2.6483]
[1724037127591,7.7825691,2643.8,2643.2,2.6483]
[1724037127932,1.04301691,2643.7,2643.2,2.6483]
[1724037128093,1.15396156,2643.7,2643.2,2.6483]
[1724037129432,2.75878465,2643.7,2643.1,5.06393]
[1724037129637,0.11094465,2643.7,2643.2,2.64828]
[1724037130392,0.11094465,2643.7,2643.4,2.3722]
[1724037130705,19.71,2643.8,2643.4,2.3722]
[1724037131031,19.71,2643.8,2643.3,5.2963]
[1724037131032,0.11209477,2643.6,2643.3,2.64812]
[1724037131233,19.71,2643.8,2643.3,2.64812]
[1724037131398,0.11202529,2643.5,2643.3,2.64812]
[1724037131598,19.71,2643.8,2643.3,2.64812]
[1724037132094,0.11213655,2643.7,2643.3,2.64812]
[1724037132289,19.71,2643.8,2643.3,2.64812]
[1724037132495,0.11206707,2643.6,2643.3,2.64812]
[1724037132728,19.71,2643.8,2643.3,2.64812]
[1724037132900,0.10819353,2643.5,2643.3,2.64812]
[1724037133089,19.71,2643.8,2643.3,2.64812]
[1724037133305,0.10812404,2643.4,2643.3,2.64812]
[1724037133528,19.71,2643.8,2643.3,2.64812]
[1724037133704,0.10812404,2643.4,2643.3,2.64812]
[1724037133910,19.71,2643.8,2643.3,2.64812]
[1724037134208,0.10812404,2643.4,2643.2,2.3722]
[1724037134536,0.10710227,2643.3,2643.2,5.02049]
[1724037134733,29.51065,2643.8,2643.2,5.02049]
[1724037134938,0.10710227,2643.3,2643.2,5.02049]
[1724037135149,2.64792,2643.6,2643.2,2.3722]
[1724037135432,0.10716493,2643.3,2643.2,2.3722]
[1724037135638,2.64792,2643.6,2643.2,2.3722]
[1724037135812,0.10719627,2643.3,2643.2,2.3722]
[1724037136345,7.56489,2643.8,2643.1,2.64833]
[1724037136493,0.1072276,2643.3,2643.1,5.29667]
[1724037136856,4.91711,2643.8,2643.2,2.6483]
[1724037137068,7.56488,2643.8,2643.1,2.64833]
[1724037137286,1.220711,2643.7,2643.1,5.29667]
[1724037137563,3.868511,2643.7,2643.1,2.64833]
[1724037137923,0.10740483,2643.6,2643.1,2.64833]
[1724037138560,0.10740483,2643.6,2643.1,2.64832]
[1724037138779,0.10740483,2643.6,2643.3,2.64812]
[1724037138920,0.10740483,2643.6,2643.4,5.0019]
[1724037139125,7.29,2643.9,2643.4,5.0019]
[1724037139365,0.10720381,2643.5,2643.4,5.0019]
[1724037139974,7.29,2643.9,2643.4,5.0019]
[1724037140120,0.10720793,2643.5,2643.4,5.0019]
[1724037140626,10.74194966,2643.9,2643.4,5.0019]
[1724037140820,0.10748841,2643.8,2643.2,2.64822]
[1724037141284,0.10748841,2643.8,2643.3,2.64819]
[1724037147475,0.10748841,2643.8,2643.3,2.64812]
[1724037147685,0.10748841,2643.8,2643.5,2.64791]
[1724037148175,0.10748841,2643.8,2643.5,5.29585]
[1724037148469,1.61,2643.9,2643.5,2.64791]
[1724037148642,0.10833456,2643.7,2643.5,2.64791]
[1724037148839,1.61,2643.9,2643.5,2.64791]
[1724037149079,0.10731549,2643.6,2643.5,2.64791]
[1724037149233,1.61,2643.9,2643.5,2.64791]
[1724037149431,0.10728416,2643.6,2643.5,2.64791]
[1724037149676,1.61,2643.9,2643.5,2.64791]
[1724037149874,0.10728416,2643.6,2643.5,2.64791]
[1724037150095,1.61,2643.9,2643.5,2.64791]
[1724037150373,0.10728416,2643.6,2643.5,2.64791]
[1724037150592,1.61,2643.9,2643.5,5.29585]
[1724037150780,0.10728416,2643.6,2643.5,2.64791]
[1724037151075,1.61,2643.9,2643.5,2.64791]
[1724037151563,1.61,2643.7,2643.3,2.64815]
[1724037151925,0.10731959,2643.6,2643.3,2.64815]
[1724037152639,2.43391959,2643.6,2643.1,3.43227518]
[1724037152839,1.61,2643.5,2643.2,3.29023648]
[1724037153041,1.61,2643.5,2643.0,3.43236518]
[1724037153367,0.10498698,2643.4,2643.1,3.29032288]
[1724037153572,0.10498698,2643.4,2643.2,1.31612915]
[1724037153773,0.10498698,2643.4,2642.8,6.85336638]
[1724037153774,2.6484,2643.1,2642.8,0.78393518]
[1724037153944,0.4975,2643.0,2642.9,1.31625161]
[1724037154145,2.64861,2642.9,2642.5,1.19975589]
[1724037154472,1.61,2642.8,2642.6,3.29083257]
[1724037154631,1.71462446,2642.8,2642.4,0.78393518]
[1724037154835,0.10462446,2642.8,2642.5,5.93993945]
[1724037155059,0.10462446,2642.8,2642.7,5.0237]
[1724037155257,3.9366,2643.2,2642.7,8.31462945]
[1724037155519,5.2961,2643.5,2642.7,5.80756518]
[1724037155520,0.10468715,2642.8,2642.7,5.80756518]
[1724037155679,4.0344,2643.4,2642.9,5.29711]
[1724037155997,2.4244,2643.4,2643.0,3.96468172]
[1724037156290,0.1049095,2643.3,2642.9,2.64853]
[1724037156499,0.1049095,2643.3,2643.0,1.31616091]
[1724037156660,0.1049095,2643.3,2643.0,2.64846]
[1724037156860,0.1049095,2643.3,2642.9,2.64853]
[1724037156861,0.1049095,2643.3,2643.1,2.64839]
[1724037157199,2.4876,2643.8,2643.3,2.64817]
[1724037157353,2.4876,2643.8,2643.1,2.64839]
[1724037157354,2.64787,2643.7,2643.1,2.64839]
[1724037157558,3.161394,2643.7,2643.1,2.64839]
[1724037157759,5.13537,2643.8,2643.1,2.64839]
[1724037157760,5.13537,2643.8,2643.1,5.29672]
[1724037157957,5.13537,2643.8,2643.1,2.64833]
[1724037158182,2.64783,2643.7,2643.1,2.64833]
[1724037158369,2.4876,2643.8,2643.3,2.64818]
[1724037158569,5.13531,2643.8,2643.3,2.64818]
[1724037158773,0.10492351,2643.7,2643.3,2.64818]
[1724037158997,5.13531,2643.8,2643.3,2.64818]
[1724037159157,0.10488533,2643.6,2643.3,2.64818]
[1724037159805,0.1048158,2643.5,2643.1,5.29671]
[1724037160021,5.13531,2643.8,2643.1,5.29671]
[1724037160186,0.10474627,2643.4,2643.1,2.64833]
[1724037160401,2.64791,2643.6,2643.1,2.64833]
[1724037160570,0.10477074,2643.3,2643.0,2.3476]
[1724037160776,0.10477074,2643.3,2643.1,1.31613932]
[1724037161009,2.64791,2643.6,2643.0,2.3476]
[1724037161304,2.64791,2643.6,2643.1,1.31615004]
[1724037161466,0.10500381,2643.5,2643.0,2.3476]
[1724037161668,4.9264,2643.4,2643.1,1.31614882]
[1724037161863,4.9264,2643.4,2643.0,1.97422765]
[1724037162088,4.9264,2643.4,2642.9,3.44095651]
[1724037162089,0.10492743,2643.3,2642.9,3.44095651]
[1724037162293,0.10492743,2643.3,2643.0,3.29042113]
[1724037162495,0.10492743,2643.3,2643.1,1.31615436]
[1724037162696,0.10492743,2643.3,2643.0,2.64849]
[1724037162879,4.90561,2643.6,2643.1,1.31614428]
[1724037163113,5.660943,2643.6,2643.0,2.64849]
[1724037163276,0.10506648,2643.5,2643.0,2.64849]
[1724037163481,0.10506648,2643.5,2643.1,1.31616162]
[1724037163681,0.10506648,2643.5,2643.0,2.64849]
[1724037163979,0.10506648,2643.5,2643.1,1.31615457]
[1724037164314,0.10506648,2643.5,2643.0,2.64849]
[1724037164484,0.10506648,2643.5,2643.1,1.31613996]
[1724037164671,0.10506648,2643.5,2643.0,2.64849]
[1724037164874,0.10506648,2643.5,2643.1,3.29030259]
[1724037165072,0.10506648,2643.5,2643.1,1.97417946]
[1724037165408,0.10506648,2643.5,2643.0,2.64849]
[1724037165597,0.10506648,2643.5,2643.1,1.31613362]
[1724037165783,0.10506648,2643.5,2643.0,2.64849]
[1724037166115,0.10506648,2643.5,2643.1,1.31613705]
[1724037166286,0.10506648,2643.5,2643.0,2.64849]
[1724037166620,0.10506648,2643.5,2643.0,5.29692]
[1724037166822,0.10506648,2643.5,2643.1,3.29035482]
[1724037166988,0.10506648,2643.5,2643.0,6.08934651]
[1724037167310,0.10506648,2643.5,2643.1,3.29022965]
[1724037167494,0.10506648,2643.5,2643.0,6.08934651]
[1724037167704,0.10506648,2643.5,2643.1,5.93866196]
[1724037167901,0.10506648,2643.5,2643.1,4.62254788]
[1724037168070,0.10506648,2643.5,2643.1,4.62254479]
[1724037168384,0.10506648,2643.5,2643.1,4.62254568]
[1724037168585,0.10506648,2643.5,2643.1,2.64839]
[1724037169113,0.10506648,2643.5,2643.2,2.64822]
[1724037169631,0.10500419,2643.4,2643.0,7.69878]
[1724037169768,0.10500419,2643.4,2643.0,2.64843]
[1724037170140,2.3997,2643.4,2642.8,5.84296651]
[1724037170417,0.60977797,2643.3,2642.9,1.31624414]
[1724037170583,2.75321197,2643.3,2642.8,2.64864]
[1724037170789,2.75321197,2643.3,2642.7,0.79242651]
[1724037171087,2.3687,2643.1,2642.7,2.6488]
[1724037171416,0.10488738,2643.0,2642.6,5.78076651]
[1724037171584,0.10488738,2643.0,2642.7,3.29078293]
[1724037171784,0.10488738,2643.0,2642.6,7.63718]
[1724037171985,0.10488738,2643.0,2642.7,3.96512669]
[1724037172172,0.10488738,2643.0,2642.7,2.64879]
[1724037175688,0.10488738,2643.0,2642.9,2.6486]
[1724037175907,0.10488738,2643.0,2642.9,5.0635]
[1724037176108,19.71,2643.3,2642.9,5.0635]
[1724037176321,0.10176952,2643.0,2642.9,5.0635]
[1724037176546,19.71,2643.3,2643.2,2.6483]
[1724037176690,1.611,2643.7,2643.3,2.6482]
[1724037176885,3.0,2643.8,2643.3,2.6482]
[1724037177090,2.1591,2643.7,2643.3,2.6482]
[1724037177394,1.611,2643.5,2643.3,2.6482]
[1724037178329,1.611,2643.7,2643.4,2.6481]
[1724037178535,2.481,2643.9,2643.4,2.6481]
[1724037178767,5.4386,2644.1,2643.5,2.64798]
[1724037178914,6.003334,2644.1,2643.5,2.64798]
[1724037179455,6.003334,2644.1,2643.5,2.64792]
[1724037179591,0.09876852,2644.0,2643.6,2.42984663]
[1724037179787,2.4386,2644.6,2644.2,2.64727]
[1724037179991,0.10034309,2644.5,2644.2,2.64727]
[1724037180233,5.08522,2644.9,2644.2,2.64723]
[1724037180418,0.09708127,2644.4,2644.3,2.64715]
[1724037180619,5.8612804,2644.9,2644.1,2.64734]
[1724037180818,3.33010142,2644.8,2644.1,2.64734]
[1724037181039,3.33011142,2644.8,2643.9,5.0018]
[1724037181219,2.64698,2644.6,2644.0,3.96311593]
[1724037181439,0.09723499,2644.5,2644.0,4.62084725]
[1724037181639,0.09723499,2644.5,2644.0,2.64747]
[1724037181798,0.09723499,2644.5,2644.1,2.64732]
[1724037182136,3.48833314,2644.7,2644.0,2.64747]
[1724037182290,0.09719684,2644.4,2644.1,2.64739]
[1724037182487,0.67211912,2644.6,2644.1,2.64739]
[1724037182692,0.09712743,2644.3,2644.1,2.64739]
[1724037182893,3.23285804,2644.8,2644.1,2.64739]
[1724037183095,0.097058,2644.2,2644.1,2.64739]
[1724037183332,3.23285804,2644.8,2644.1,2.64739]
[1724037183535,3.0,2645.1,2644.5,2.64696]
[1724037183702,0.09740507,2644.7,2644.5,2.64696]
[1724037183906,3.0,2645.1,2644.5,2.64696]
[1724037184110,0.09734597,2644.6,2644.5,2.64696]
[1724037184321,12.26514,2645.2,2644.5,2.64696]
[1724037184494,0.09737877,2644.6,2644.5,2.64696]
[1724037184714,19.71,2645.1,2644.5,2.64696]
[1724037184909,0.0973475,2644.6,2644.5,2.64696]
[1724037185144,19.71,2645.1,2644.5,2.64696]
[1724037185349,0.09737877,2644.6,2644.5,2.64696]
[1724037185527,22.35641,2645.1,2644.5,2.64696]
[1724037185839,3.197521,2645.0,2644.5,2.64696]
[1724037186066,3.29517734,2645.0,2644.5,2.64696]
[1724037187731,3.29517734,2645.0,2644.3,4.92828]
[1724037187732,5.94174734,2645.0,2644.3,4.92821]
[1724037188042,2.82981573,2644.9,2644.3,4.92821]
[1724037188551,0.09751756,2644.8,2644.3,4.92821]
[1724037189060,2.64681,2644.7,2644.0,2.4087]
[1724037189254,0.09741129,2644.6,2644.0,5.05618]
[1724037189406,0.09741129,2644.6,2644.0,5.05612]
[1724037189626,0.09741129,2644.6,2644.1,2.64734]
[1724037189819,19.80741129,2644.6,2644.1,2.64734]
[1724037190123,23.13553506,2644.6,2644.1,2.64734]
[1724037190769,23.13553506,2644.6,2644.0,5.05612]
[1724037190969,23.13553506,2644.6,2644.0,7.70354]
[1724037191128,19.80741129,2644.6,2644.0,5.05612]
[1724037191487,19.80741129,2644.6,2644.2,2.6473]
[1724037192542,19.80741129,2644.6,2644.0,5.05612]
[1724037193522,19.80741129,2644.6,2644.2,2.64727]
[1724037193725,0.09741129,2644.6,2644.2,2.64727]
[1724037194036,6.18380643,2644.8,2644.2,2.64727]
[1724037194232,0.0970741,2644.7,2644.2,2.64727]
[1724037195441,0.98984015,2644.7,2644.2,2.64727]
[1724037196438,3.63665015,2644.7,2644.0,7.70354]
[1724037196769,3.63665015,2644.7,2644.1,2.64737]
[1724037197072,3.63665015,2644.7,2644.2,2.64727]
[1724037197073,0.98984015,2644.7,2644.2,2.64727]
[1724037197260,0.0970741,2644.7,2644.2,2.64727]
[1724037198671,2.7439441,2644.7,2644.0,7.70355]
[1724037198828,2.7439441,2644.7,2644.0,5.05612]
[1724037199158,2.7439441,2644.7,2644.0,7.70355]
[1724037199325,3.52252951,2644.7,2644.0,7.70355]
[1724037199766,3.52252951,2644.7,2644.1,2.64737]
[1724037200347,2.64696,2644.6,2644.0,5.05612]
[1724037200579,2.64696,2644.6,2644.0,2.64742]
[1724037200580,1.96126195,2644.5,2644.0,2.64742]
[1724037200906,4.70430652,2644.5,2644.0,2.64742]
[1724037201100,4.70430652,2644.5,2643.8,4.98286]
[1724037201101,1.609,2644.3,2643.8,4.98286]
[1724037201476,0.09582718,2644.2,2643.8,4.98286]
[1724037201867,1.609,2644.3,2643.8,4.98286]
[1724037202075,0.09575668,2644.1,2643.8,4.98286]
[1724037202603,0.09568256,2644.0,2643.8,4.98283]
[1724037202904,5.00331,2644.4,2643.8,4.98283]
[1724037203103,0.09561307,2643.9,2643.8,4.98283]
[1724037203304,5.00331,2644.4,2643.8,4.98283]
[1724037203510,2.64695,2644.6,2643.3,2.6481]
[1724037203511,0.09561307,2643.9,2643.4,2.64803]
[1724037203800,0.09561307,2643.9,2643.3,2.3454]
[1724037203801,2.64762,2643.9,2643.3,2.3454]
[1724037203973,2.422,2644.0,2643.4,2.64809]
[1724037203974,0.09524364,2643.8,2643.4,2.64809]
[1724037204299,2.422,2644.0,2643.4,2.64809]
[1724037204497,0.09517424,2643.7,2643.4,2.64809]
[1724037204801,0.09510473,2643.6,2643.4,2.64809]
[1724037205100,2.422,2644.0,2643.4,2.64809]
[1724037205304,0.09497254,2643.5,2643.4,2.64809]
[1724037205476,5.06951,2644.0,2643.4,2.64809]
[1724037205677,0.09497254,2643.5,2643.4,2.64809]
[1724037205910,5.841201,2644.0,2643.4,2.64809]
[1724037206061,0.09503521,2643.5,2643.4,2.64809]
[1724037206266,3.193691,2644.0,2643.4,5.29612]
[1724037206524,0.09497254,2643.5,2643.4,2.64803]
[1724037206685,2.422,2644.0,2643.4,2.64803]
[1724037206998,5.06951,2644.0,2643.4,2.64803]
[1724037207174,0.0952506,2643.9,2643.4,2.64803]
[1724037207904,2.7428606,2643.9,2643.3,2.3454]
[1724037208107,2.7428606,2643.9,2643.2,5.29649]
[1724037208108,2.7428606,2643.9,2643.2,2.64824]
[1724037208442,3.16418606,2643.8,2643.2,2.64824]
[1724037208580,2.422,2643.6,2643.0,2.64843]
[1724037208768,0.09500388,2643.5,2643.0,2.64843]
[1724037208976,0.09500388,2643.5,2643.1,2.64833]
[1724037210810,0.09500388,2643.5,2643.1,2.64838]
[1724037211976,0.09500388,2643.5,2643.0,2.64849]
[1724037212972,0.61148727,2643.5,2642.8,2.3454]
[1724037213178,0.61148727,2643.5,2642.7,2.64873]
[1724037213179,2.3743,2643.3,2642.7,2.64873]
[1724037213400,0.09495197,2643.2,2642.7,2.64873]
[1724037213773,0.09495197,2643.2,2642.7,5.29746]
[1724037213975,2.3743,2643.3,2642.8,2.64867]
[1724037214374,0.09495034,2643.2,2642.8,2.64867]
[1724037214739,2.3743,2643.3,2642.5,5.652207]
[1724037214740,5.02257,2643.3,2642.5,5.652207]
[1724037214888,5.02257,2643.3,2642.6,0.3911844]
[1724037214889,0.0948808,2643.1,2642.6,0.3911844]
[1724037215093,0.09495034,2643.2,2642.6,0.3911844]
[1724037215303,0.09481126,2643.0,2642.7,2.64873]
[1724037215507,0.0948808,2643.1,2642.7,5.29746]
[1724037215674,2.4748,2643.5,2642.9,2.64859]
[1724037215905,5.29591,2643.6,2643.0,2.2689]
[1724037215906,2.64793,2643.6,2643.0,2.2689]
[1724037216108,2.64793,2643.6,2643.1,2.6484]
[1724037216846,0.09504998,2643.5,2643.1,2.6484]
[1724037217158,0.09504998,2643.5,2643.1,3.162197]
[1724037217658,0.09472978,2643.4,2643.1,3.162197]
[1724037217808,2.4748,2643.7,2643.1,3.162197]
[1724037218024,0.09499416,2643.6,2643.1,5.810517]
[1724037218214,0.09499416,2643.6,2643.2,2.64829]
[1724037218486,0.09499416,2643.6,2643.3,2.64816]
[1724037219520,5.6477,2643.9,2643.3,2.64816]
[1724037219746,0.09483064,2643.5,2643.3,2.64816]
[1724037219978,5.6477,2643.9,2643.3,2.64816]
[1724037220127,0.09476111,2643.4,2643.3,2.64816]
[1724037220324,5.6477,2643.9,2643.3,2.64816]
[1724037220574,0.09476111,2643.4,2643.3,2.64816]
[1724037220755,6.17513049,2643.9,2643.3,2.64816]
[1724037220959,0.09476111,2643.4,2643.3,2.64816]
[1724037221479,2.6477,2643.8,2643.3,2.64816]
[1724037221784,0.09476111,2643.4,2643.3,2.64816]
[1724037221958,2.6477,2643.8,2643.3,2.64816]
[1724037222155,0.09476111,2643.4,2643.3,2.64816]
[1724037222349,3.50393505,2643.8,2643.3,2.64816]
[1724037222560,0.09476111,2643.4,2643.3,2.64816]
[1724037223029,3.50393505,2643.8,2643.3,2.64816]
[1724037223230,0.09492642,2643.7,2643.3,2.64816]
[1724037223429,2.6477,2643.8,2643.3,2.64816]
[1724037223626,0.09492642,2643.7,2643.3,2.64816]
[1724037223831,2.6477,2643.8,2643.3,2.64816]
[1724037224057,0.09492642,2643.7,2643.3,2.64816]
[1724037224259,2.6477,2643.8,2643.3,2.64816]
[1724037224454,0.09492642,2643.7,2643.3,2.64816]
[1724037224659,3.52745049,2643.9,2643.3,2.64816]
[1724037224845,0.09499593,2643.8,2643.4,2.64809]
[1724037225045,0.09499593,2643.8,2643.3,2.64816]
[1724037225046,0.96071057,2643.8,2643.3,2.64816]
[1724037226637,3.60841057,2643.8,2643.3,2.64816]
[1724037229187,2.64796,2643.6,2642.9,2.64854]
[1724037229402,5.29595,2643.6,2642.9,4.25854]
[1724037229573,2.52460644,2643.5,2642.9,4.25854]
[1724037229765,5.68987308,2643.5,2642.9,4.25854]
[1724037230152,3.04186308,2643.5,2642.9,4.25854]
[1724037230470,5.68987308,2643.5,2642.9,4.25854]
[1724037231367,3.04186308,2643.5,2642.9,4.25854]